fUSD/lending_fUSD_20250525
["ID","MTS","AMOUNT","RATE_DAILY","PERIOD"]
[362333999,1748201438897,-2354.3108,0.00019899,2]
[362334000,1748201438907,-151.0,0.000199,2]
[362334001,1748201438916,-151.0,0.000199,2]
[362334002,1748201438925,-1448.96974786,0.000199,2]
[362334003,1748201438935,-209.05835118,0.000199,2]
[362334004,1748201438944,-903.601,0.00019901,2]
[362334005,1748201438953,-1000.0,0.0001994,2]
[362334006,1748201438962,-500.0,0.00019973,2]
[362334007,1748201438972,-500.0,0.00019973,2]
[362334008,1748201438981,-232.64646598,0.00019973,2]
[362334009,1748201438991,-500.0,0.00019973,2]
[362334010,1748201439000,-500.0,0.00019973,2]
[362334011,1748201439010,-500.520092,0.00019973,2]
[362334012,1748201439022,-266.35019632,0.00019989,2]
[362334013,1748201439031,-420.0,0.00019989,2]
[362334014,1748201439041,-420.0,0.00019989,2]
[362334015,1748201439050,-420.0,0.00019989,2]
[362334016,1748201439060,-420.0,0.00019989,2]
[362334017,1748201439069,-420.0,0.00019989,2]
[362334018,1748201439078,-420.0,0.00019989,2]
[362334019,1748201439086,-420.0,0.00019989,2]
[362334020,1748201439095,-420.0,0.00019989,2]
[362334021,1748201439106,-420.0,0.00019989,2]
[362334022,1748201439115,-151.0,0.0001999,2]
[362334023,1748201439124,-151.0,0.0001999,2]
[362334024,1748201439133,-693.71962897,0.0001999,2]
[362334025,1748201439142,-420.0,0.00019993,2]
[362334026,1748201439151,-420.0,0.00019993,2]
[362334027,1748201439159,-420.0,0.00019993,2]
[362334028,1748201439168,-420.0,0.00019993,2]
[362334029,1748201439178,-420.0,0.00019993,2]
[362334030,1748201439187,-420.0,0.00019993,2]
[362334031,1748201439197,-420.0,0.00019993,2]
[362334032,1748201439206,-420.0,0.00019993,2]
[362334033,1748201439215,-420.0,0.00019993,2]
[362334034,1748201439224,-420.0,0.00019993,2]
[362334035,1748201439233,-474.30671169,0.00019993,2]
[362334036,1748201439243,-420.0,0.00019993,2]
[362334037,1748201439252,-420.0,0.00019993,2]
[362334038,1748201439261,-420.0,0.00019993,2]
[362334039,1748201439270,-420.0,0.00019993,2]
[362334040,1748201439279,-420.0,0.00019993,2]
[362334041,1748201439288,-420.0,0.00019993,2]
[362334042,1748201439297,-420.0,0.00019993,2]
[362334043,1748201439306,-420.0,0.00019993,2]
[362334044,1748201439315,-420.0,0.00019993,2]
[362334045,1748201439324,-557.42,0.00019993,2]
[362334046,1748201439333,-276.57664199,0.00019993,2]
[362334047,1748201439342,-420.0,0.00019993,2]
[362334048,1748201439352,-420.0,0.00019993,2]
[362334049,1748201439362,-420.0,0.00019993,2]
[362334050,1748201439372,-420.0,0.00019993,2]
[362334051,1748201439381,-420.0,0.00019993,2]
[362334052,1748201439390,-420.0,0.00019993,2]
[362334053,1748201439399,-420.0,0.00019993,2]
[362334054,1748201439408,-420.0,0.00019993,2]
[362334055,1748201439417,-420.0,0.00019993,2]
[362334056,1748201439426,-420.0,0.00019993,2]
[362334057,1748201439436,-420.0,0.00019993,2]
[362334058,1748201439445,-339.91476975,0.00019994,2]
[362334059,1748201439455,-420.0,0.00019994,2]
[362334060,1748201439464,-169.52451393,0.00019994,2]
[362334061,1748201439473,-420.0,0.00019994,2]
[362334062,1748201439483,-217.01777814,0.00019994,2]
[362334063,1748201439492,-274.82587193,0.00019994,2]
[362334064,1748201439501,-420.0,0.00019994,2]
[362334065,1748201439511,-420.0,0.00019994,2]
[362334066,1748201439519,-420.0,0.00019994,2]
[362334067,1748201439528,-420.0,0.00019994,2]
[362334068,1748201439538,-420.0,0.00019994,2]
[362334069,1748201439547,-420.0,0.00019994,2]
[362334070,1748201439556,-420.0,0.00019994,2]
[362334071,1748201439565,-505.68933559,0.00019994,2]
[362334072,1748201439574,-420.0,0.00019994,2]
[362334073,1748201439583,-420.0,0.00019994,2]
[362334074,1748201439593,-420.0,0.00019994,2]
[362334075,1748201439602,-420.0,0.00019994,2]
[362334076,1748201439613,-420.0,0.00019994,2]
[362334077,1748201439622,-420.0,0.00019994,2]
[362334078,1748201439631,-420.0,0.00019994,2]
[362334079,1748201439641,-420.0,0.00019994,2]
[362334080,1748201439650,-420.0,0.00019994,2]
[362334081,1748201439659,-420.0,0.00019994,2]
[362334082,1748201439668,-420.0,0.00019994,2]
[362334083,1748201439677,-420.0,0.00019994,2]
[362334084,1748201439687,-420.0,0.00019994,2]
[362334085,1748201439696,-332.96837975,0.00019994,2]
[362334086,1748201439705,-420.0,0.00019994,2]
[362334087,1748201439714,-420.0,0.00019994,2]
[362334088,1748201439723,-420.0,0.00019994,2]
[362334089,1748201439732,-420.0,0.00019994,2]
[362334090,1748201439742,-420.0,0.00019994,2]
[362334091,1748201439751,-420.0,0.00019994,2]
[362334092,1748201439759,-420.0,0.00019994,2]
[362334093,1748201439769,-420.0,0.00019994,2]
[362334094,1748201439778,-420.0,0.00019994,2]
[362334095,1748201439787,-420.0,0.00019994,2]
[362334096,1748201439796,-420.0,0.00019994,2]
[362334097,1748201439805,-420.0,0.00019994,2]
[362334098,1748201439815,-420.0,0.00019994,2]
[362334099,1748201439824,-420.0,0.00019994,2]
[362334100,1748201439833,-444.47431545,0.00019994,2]
[362334101,1748201439842,-420.0,0.00019994,2]
[362334102,1748201439852,-420.0,0.00019994,2]
[362334103,1748201439865,-420.0,0.00019994,2]
[362334104,1748201439876,-420.0,0.00019994,2]
[362334105,1748201439885,-420.0,0.00019994,2]
[362334106,1748201439895,-360.51961372,0.00019994,2]
[362334107,1748201439905,-420.0,0.00019994,2]
[362334108,1748201439914,-479.20198246,0.00019994,2]
[362334109,1748201439923,-420.0,0.00019994,2]
[362334110,1748201439933,-420.0,0.00019994,2]
[362334111,1748201439943,-420.0,0.00019994,2]
[362334112,1748201439952,-420.0,0.00019994,2]
[362334113,1748201439962,-420.0,0.00019994,2]
[362334114,1748201439971,-500.0,0.00019994,2]
[362334115,1748201439980,-420.0,0.00019994,2]
[362334116,1748201439990,-151.70201048,0.00019994,2]
[362334124,1748201440300,-268.29798952,0.00019994,2]
[362334125,1748201440310,-420.0,0.00019994,2]
[362334126,1748201440319,-420.0,0.00019994,2]
[362334127,1748201440328,-420.0,0.00019994,2]
[362334128,1748201440338,-420.0,0.00019994,2]
[362334129,1748201440347,-420.0,0.00019994,2]
[362334130,1748201440357,-420.0,0.00019994,2]
[362334131,1748201440366,-354.87062839,0.00019994,2]
[362334132,1748201440375,-420.0,0.00019994,2]
[362334133,1748201440384,-420.0,0.00019994,2]
[362334134,1748201440394,-551.21935671,0.00019994,2]
[362334135,1748201440403,-208.10077404,0.00019994,2]
[362334136,1748201440413,-420.0,0.00019994,2]
[362334137,1748201440423,-420.0,0.00019994,2]
[362334138,1748201440433,-420.0,0.00019994,2]
[362334139,1748201440442,-342.32506206,0.00019994,2]
[362334140,1748201440452,-420.0,0.00019994,2]
[362334141,1748201440461,-420.0,0.00019994,2]
[362334142,1748201440471,-508.48792638,0.00019994,2]
[362334143,1748201440481,-420.0,0.00019994,2]
[362334144,1748201440490,-389.42226546,0.00019994,2]
[362334145,1748201440499,-420.0,0.00019994,2]
[362334146,1748201440511,-420.0,0.00019994,2]
[362334147,1748201440521,-420.0,0.00019994,2]
[362334148,1748201440531,-420.0,0.00019994,2]
[362334149,1748201440540,-420.0,0.00019994,2]
[362334150,1748201440550,-557.94279715,0.00019994,2]
[362334151,1748201440559,-420.0,0.00019994,2]
[362334152,1748201440568,-425.31148811,0.00019994,2]
[362334153,1748201440578,-420.0,0.00019994,2]
[362334154,1748201440587,-420.0,0.00019994,2]
[362334155,1748201440597,-420.0,0.00019994,2]
[362334156,1748201440606,-420.0,0.00019994,2]
[362334157,1748201440616,-420.0,0.00019994,2]
[362334158,1748201440626,-420.0,0.00019994,2]
[362334159,1748201440635,-420.0,0.00019994,2]
[362334160,1748201440645,-420.0,0.00019994,2]
[362334161,1748201440654,-420.0,0.00019994,2]
[362334162,1748201440664,-420.0,0.00019994,2]
[362334163,1748201440674,-420.0,0.00019994,2]
[362334164,1748201440683,-420.0,0.00019994,2]
[362334165,1748201440692,-420.0,0.00019994,2]
[362334166,1748201440702,-420.0,0.00019994,2]
[362334167,1748201440711,-420.0,0.00019994,2]
[362334168,1748201440720,-420.0,0.00019994,2]
[362334169,1748201440730,-420.0,0.00019994,2]
[362334170,1748201440739,-420.0,0.00019994,2]
[362334171,1748201440748,-420.0,0.00019994,2]
[362334172,1748201440758,-420.0,0.00019994,2]
[362334173,1748201440767,-420.0,0.00019994,2]
[362334174,1748201440776,-387.57,0.00019994,2]
[362334175,1748201440786,-420.0,0.00019994,2]
[362334176,1748201440795,-420.0,0.00019994,2]
[362334177,1748201440804,-457.44716123,0.00019994,2]
[362334178,1748201440813,-420.0,0.00019994,2]
[362334179,1748201440823,-420.0,0.00019994,2]
[362334180,1748201440833,-420.0,0.00019994,2]
[362334181,1748201440842,-420.0,0.00019994,2]
[362334182,1748201440851,-420.0,0.00019994,2]
[362334183,1748201440861,-420.0,0.00019994,2]
[362334185,1748201440871,-420.0,0.00019994,2]
[362334187,1748201440880,-420.0,0.00019994,2]
[362334189,1748201440889,-420.0,0.00019994,2]
[362334191,1748201440899,-420.0,0.00019994,2]
[362334193,1748201440910,-420.0,0.00019994,2]
[362334195,1748201440919,-420.0,0.00019994,2]
[362334197,1748201440928,-420.0,0.00019994,2]
[362334198,1748201440938,-545.96135754,0.00019994,2]
[362334199,1748201440948,-420.0,0.00019994,2]
[362334200,1748201440958,-420.0,0.00019994,2]
[362334201,1748201440967,-420.0,0.00019994,2]
[362334202,1748201440977,-420.0,0.00019994,2]
[362334203,1748201440987,-420.0,0.00019994,2]
[362334204,1748201440997,-555.01240878,0.00019994,2]
[362334205,1748201441006,-420.0,0.00019994,2]
[362334206,1748201441016,-431.28092279,0.00019994,2]
[362334207,1748201441028,-420.0,0.00019994,2]
[362334208,1748201441038,-302.38755705,0.00019994,2]
[362334209,1748201441047,-420.0,0.00019994,2]
[362334210,1748201441057,-420.0,0.00019994,2]
[362334211,1748201441067,-420.0,0.00019994,2]
[362334212,1748201441076,-448.94804967,0.00019994,2]
[362334213,1748201441085,-420.0,0.00019994,2]
[362334214,1748201441094,-428.05148963,0.00019994,2]
[362334215,1748201441103,-420.0,0.00019994,2]
[362334216,1748201441114,-420.0,0.00019994,2]
[362334217,1748201441123,-420.0,0.00019994,2]
[362334218,1748201441132,-420.0,0.00019994,2]
[362334219,1748201441142,-420.0,0.00019994,2]
[362334220,1748201441151,-420.0,0.00019994,2]
[362334221,1748201441160,-420.0,0.00019994,2]
[362334222,1748201441169,-420.0,0.00019994,2]
[362334223,1748201441178,-420.0,0.00019994,2]
[362334224,1748201441187,-420.0,0.00019994,2]
[362334225,1748201441196,-264.24,0.00019994,2]
[362334226,1748201441205,-420.0,0.00019994,2]
[362334227,1748201441214,-420.0,0.00019994,2]
[362334228,1748201441223,-420.0,0.00019994,2]
[362334229,1748201441232,-420.0,0.00019994,2]
[362334230,1748201441241,-420.0,0.00019994,2]
[362334231,1748201441251,-420.0,0.00019994,2]
[362334232,1748201441260,-250.35477871,0.00019994,2]
[362334233,1748201441280,-169.64522129,0.00019994,2]
[362334234,1748201441289,-420.0,0.00019994,2]
[362334235,1748201441298,-420.0,0.00019994,2]
[362334236,1748201441307,-420.0,0.00019994,2]
[362334237,1748201441317,-420.0,0.00019994,2]
[362334238,1748201441326,-734.99283699,0.00019994,2]
[362334239,1748201441335,-420.0,0.00019994,2]
[362334240,1748201441345,-420.0,0.00019994,2]
[362334241,1748201441354,-420.0,0.00019994,2]
[362334242,1748201441364,-420.0,0.00019994,2]
[362334243,1748201441374,-420.0,0.00019994,2]
[362334244,1748201441382,-420.83820099,0.00019994,2]
[362334245,1748201441392,-209.51879719,0.00019994,2]
[362334246,1748201441401,-420.0,0.00019994,2]
[362334247,1748201441410,-151.0,0.00019995,2]
[362334248,1748201441420,-151.0,0.00019995,2]
[362334249,1748201441430,-91227.2681309,0.00019995,2]
[362334250,1748201441439,-55276.4426067,0.00019995,2]
[362334251,1748201441449,-28910.1537415,0.00019995,2]
[362334252,1748201441459,-13909.7491771,0.00019995,2]
[362334253,1748201441468,-6599.0571747,0.00019995,2]
[362334254,1748201441478,-151.0,0.00019998,2]
[362334255,1748201441487,-151.0,0.00019998,2]
[362334256,1748201441497,-151.0,0.00019998,2]
[362334257,1748201441506,-151.0,0.00019998,2]
[362334258,1748201441516,-420.0,0.00019998,2]
[362334259,1748201441526,-420.0,0.00019998,2]
[362334260,1748201441535,-420.0,0.00019998,2]
[362334261,1748201441545,-420.0,0.00019998,2]
[362334262,1748201441555,-420.0,0.00019998,2]
[362334263,1748201441564,-420.0,0.00019998,2]
[362334264,1748201441574,-420.0,0.00019998,2]
[362334265,1748201441583,-420.0,0.00019998,2]
[362334266,1748201441592,-420.0,0.00019998,2]
[362334267,1748201441602,-420.0,0.00019998,2]
[362334268,1748201441612,-563.06,0.00019998,2]
[362334269,1748201441622,-420.0,0.00019998,2]
[362334270,1748201441631,-151.0,0.00019999,2]
[362334271,1748201441640,-151.0,0.00019999,2]
[362334272,1748201441650,-151.0,0.00019999,2]
[362334273,1748201441660,-1000.0,0.00019999,2]
[362334274,1748201441669,-2000.0,0.00019999,2]
[362334275,1748201441679,-268.18636324,0.00019999,2]
[362334276,1748201441689,-420.0,0.00019999,2]
[362334277,1748201441699,-420.0,0.00019999,2]
[362334278,1748201441708,-420.0,0.00019999,2]
[362334279,1748201441719,-420.0,0.00019999,2]
[362334280,1748201441728,-420.0,0.00019999,2]
[362334281,1748201441738,-420.0,0.00019999,2]
[362334282,1748201441747,-420.0,0.00019999,2]
[362334283,1748201441757,-420.0,0.00019999,2]
[362334284,1748201441767,-420.0,0.00019999,2]
[362334285,1748201441778,-2000.0,0.00019999,2]
[362334286,1748201441787,-420.0,0.00019999,2]
[362334287,1748201441796,-420.0,0.00019999,2]
[362334288,1748201441806,-420.0,0.00019999,2]
[362334289,1748201441815,-420.0,0.00019999,2]
[362334290,1748201441825,-190.97005016,0.00019999,2]
[362334291,1748201441834,-420.0,0.00019999,2]
[362334292,1748201441844,-444.38068069,0.00019999,2]
[362334293,1748201441853,-420.0,0.00019999,2]
[362334294,1748201441867,-420.0,0.00019999,2]
[362334295,1748201441877,-276.8703258,0.00019999,2]
[362334296,1748201441887,-420.0,0.00019999,2]
[362334297,1748201441897,-420.0,0.00019999,2]
[362334298,1748201441907,-420.0,0.00019999,2]
[362334299,1748201441916,-258.95523862,0.00019999,2]
[362334300,1748201441926,-420.0,0.00019999,2]
[362334301,1748201441936,-420.0,0.00019999,2]
[362334302,1748201441945,-420.0,0.00019999,2]
[362334303,1748201441955,-420.0,0.00019999,2]
[362334304,1748201441964,-420.0,0.00019999,2]
[362334305,1748201441974,-420.0,0.00019999,2]
[362334306,1748201441983,-420.0,0.00019999,2]
[362334307,1748201441993,-420.0,0.00019999,2]
[362334308,1748201442003,-420.0,0.00019999,2]
[362334309,1748201442012,-180.75,0.00019999,2]
[362334310,1748201442024,-420.0,0.00019999,2]
[362334311,1748201442034,-420.0,0.00019999,2]
[362334312,1748201442044,-420.0,0.00019999,2]
[362334313,1748201442054,-420.0,0.00019999,2]
[362334314,1748201442063,-420.0,0.00019999,2]
[362334315,1748201442073,-420.0,0.00019999,2]
[362334316,1748201442083,-256.59944944,0.00019999,2]
[362334317,1748201442093,-385.42869566,0.00019999,2]
[362334318,1748201442107,-452.76350386,0.00019999,2]
[362334319,1748201442119,-420.0,0.00019999,2]
[362334320,1748201442129,-420.0,0.00019999,2]
[362334321,1748201442138,-420.0,0.00019999,2]
[362334322,1748201442148,-324.80789805,0.00019999,2]
[362334323,1748201442158,-420.0,0.00019999,2]
[362334324,1748201442168,-420.0,0.00019999,2]
[362334325,1748201442177,-420.0,0.00019999,2]
[362334326,1748201442186,-447.32236259,0.00019999,2]
[362334327,1748201442195,-420.0,0.00019999,2]
[362334328,1748201442205,-420.0,0.00019999,2]
[362334329,1748201442214,-456.51109403,0.00019999,2]
[362334330,1748201442224,-420.0,0.00019999,2]
[362334331,1748201442234,-420.0,0.00019999,2]
[362334332,1748201442243,-420.0,0.00019999,2]
[362334333,1748201442252,-263.59,0.00019999,2]
[362334334,1748201442261,-372.67949869,0.00019999,2]
[362334335,1748201442271,-500.0,0.00019999,2]
[362334336,1748201442280,-500.0,0.00019999,2]
[362334337,1748201442290,-420.0,0.00019999,2]
[362334338,1748201442474,-420.0,0.00019999,2]
[362334339,1748201442483,-420.0,0.00019999,2]
[362334340,1748201442493,-420.0,0.00019999,2]
[362334341,1748201442502,-420.0,0.00019999,2]
[362334342,1748201442511,-420.0,0.00019999,2]
[362334343,1748201442521,-420.0,0.00019999,2]
[362334344,1748201442530,-420.0,0.00019999,2]
[362334345,1748201442539,-420.0,0.00019999,2]
[362334346,1748201442548,-420.0,0.00019999,2]
[362334347,1748201442558,-420.0,0.00019999,2]
[362334348,1748201442567,-536.86,0.00019999,2]
[362334349,1748201442576,-420.0,0.00019999,2]
[362334350,1748201442585,-494.54639255,0.00019999,2]
[362334351,1748201442595,-375.77260641,0.00019999,2]
[362334352,1748201442604,-397.26088965,0.00019999,2]
[362334353,1748201442614,-420.0,0.00019999,2]
[362334354,1748201442623,-456.4386329,0.00019999,2]
[362334355,1748201442632,-420.0,0.00019999,2]
[362334356,1748201442642,-420.0,0.00019999,2]
[362334357,1748201442652,-420.0,0.00019999,2]
[362334358,1748201442661,-420.0,0.00019999,2]
[362334359,1748201442671,-420.0,0.00019999,2]
[362334360,1748201442680,-298.26698886,0.00019999,2]
[362334361,1748201442689,-420.0,0.00019999,2]
[362334362,1748201442699,-420.0,0.00019999,2]
[362334363,1748201442708,-420.0,0.00019999,2]
[362334364,1748201442717,-420.0,0.00019999,2]
[362334365,1748201442727,-420.0,0.00019999,2]
[362334366,1748201442737,-420.0,0.00019999,2]
[362334367,1748201442747,-420.0,0.00019999,2]
[362334368,1748201442756,-529.20416906,0.00019999,2]
[362334369,1748201442767,-420.0,0.00019999,2]
[362334370,1748201442776,-420.0,0.00019999,2]
[362334371,1748201442786,-420.0,0.00019999,2]
[362334372,1748201442795,-420.0,0.00019999,2]
[362334373,1748201442804,-420.0,0.00019999,2]
[362334374,1748201442814,-420.0,0.00019999,2]
[362334375,1748201442824,-420.0,0.00019999,2]
[362334376,1748201442833,-420.0,0.00019999,2]
[362334377,1748201442843,-420.0,0.00019999,2]
[362334378,1748201442852,-420.0,0.00019999,2]
[362334379,1748201442863,-420.0,0.00019999,2]
[362334380,1748201442873,-420.0,0.00019999,2]
[362334381,1748201442882,-420.0,0.00019999,2]
[362334382,1748201442892,-420.0,0.00019999,2]
[362334383,1748201442902,-352.86,0.00019999,2]
[362334384,1748201442911,-420.0,0.00019999,2]
[362334385,1748201442921,-420.0,0.00019999,2]
[362334387,1748201442931,-420.0,0.00019999,2]
[362334388,1748201442940,-420.0,0.00019999,2]
[362334389,1748201442949,-302.1247568,0.00019999,2]
[362334391,1748201442959,-420.0,0.00019999,2]
[362334392,1748201442969,-420.0,0.00019999,2]
[362334393,1748201442978,-501.05050798,0.00019999,2]
[362334394,1748201442988,-420.0,0.00019999,2]
[362334395,1748201442998,-420.0,0.00019999,2]
[362334396,1748201443008,-420.0,0.00019999,2]
[362334397,1748201443018,-420.0,0.00019999,2]
[362334398,1748201443032,-420.0,0.00019999,2]
[362334399,1748201443042,-484.77461438,0.00019999,2]
[362334400,1748201443052,-420.0,0.00019999,2]
[362334402,1748201443061,-420.0,0.00019999,2]
[362334403,1748201443071,-420.0,0.00019999,2]
[362334404,1748201443080,-420.0,0.00019999,2]
[362334405,1748201443090,-420.0,0.00019999,2]
[362334407,1748201443099,-373.81761513,0.00019999,2]
[362334408,1748201443109,-420.0,0.00019999,2]
[362334409,1748201443119,-420.0,0.00019999,2]
[362334410,1748201443128,-420.0,0.00019999,2]
[362334411,1748201443138,-420.0,0.00019999,2]
[362334412,1748201443147,-420.0,0.00019999,2]
[362334413,1748201443157,-10024.71330964,0.00019999,2]
[362334414,1748201443166,-1000.0,0.00019999,2]
[362334415,1748201443176,-420.0,0.00019999,2]
[362334416,1748201443185,-420.0,0.00019999,2]
[362334418,1748201443195,-420.0,0.00019999,2]
[362334419,1748201443204,-420.0,0.00019999,2]
[362334420,1748201443214,-420.0,0.00019999,2]
[362334421,1748201443223,-420.0,0.00019999,2]
[362334422,1748201443232,-420.0,0.00019999,2]
[362334423,1748201443242,-420.0,0.00019999,2]
[362334424,1748201443251,-420.0,0.00019999,2]
[362334425,1748201443260,-420.0,0.00019999,2]
[362334426,1748201443270,-420.0,0.00019999,2]
[362334427,1748201443279,-420.0,0.00019999,2]
[362334428,1748201443289,-420.0,0.00019999,2]
[362334429,1748201443298,-270.59,0.00019999,2]
[362334430,1748201443308,-420.0,0.00019999,2]
[362334431,1748201443317,-500.0,0.00019999,2]
[362334432,1748201443326,-420.0,0.00019999,2]
[362334433,1748201443336,-150.0,0.00019999,2]
[362334434,1748201443345,-549.16,0.00019999,2]
[362334435,1748201443355,-419.47277263,0.00019999,2]
[362334436,1748201443365,-420.0,0.00019999,2]
[362334437,1748201443374,-420.0,0.00019999,2]
[362334438,1748201443384,-420.0,0.00019999,2]
[362334439,1748201443393,-420.0,0.00019999,2]
[362334440,1748201443403,-281.14180265,0.00019999,2]
[362334441,1748201443413,-531.0,0.0002,2]
[362334442,1748201443422,-204.42124139,0.0002,2]
[362334443,1748201443431,-142392.58783855,0.0002,2]
[362334444,1748201443441,-922.0,0.0002,2]
[362334445,1748201443450,-586.0,0.0002,2]
[362334446,1748201443460,-1463.0,0.0002,2]
[362334447,1748201443469,-555.0,0.0002,2]
[362334448,1748201443479,-1263.0,0.0002,2]
[362334449,1748201443489,-1151.0,0.0002,2]
[362334450,1748201443498,-938.0,0.0002,2]
[362334451,1748201443507,-1311.0,0.0002,2]
[362334452,1748201443517,-154.0,0.0002,2]
[362334453,1748201443526,-4057.0,0.0002,2]
[362334454,1748201443535,-6918.0,0.0002,2]
[362334455,1748201443545,-29427.53979091,0.0002,2]
[362334461,1748201443695,-37.38450977,0.0002,2]
[362334468,1748201443767,-420.0,0.00019993,2]
[362334470,1748201443776,-341.39981363,0.0002,2]
[362334472,1748201443788,-288.60018637,0.0002,2]
[362334605,1748201446583,-420.0,0.00019989,2]
[362334606,1748201446593,-845.0,0.0002,2]
[362334607,1748201446603,-1928.18975546,0.0002,2]
[362334612,1748201502852,350.13,0.00013699,2]
[362334653,1748201735992,-212.99998,0.00017142,2]
[362334654,1748201736015,-35.51001284,0.00018038,2]
[362334655,1748201768947,168.88,0.00025112,120]
[362334656,1748201769147,168.88,0.00027395,120]
[362334657,1748201887931,5459.16743918,7.945e-05,2]
[362334658,1748201887953,3231.02375582,7.945e-05,2]
[362334660,1748202035519,154.15,0.00013699,2]
[362334661,1748202035867,154.15,0.00013699,2]
[362334662,1748202036218,154.15,0.00013699,2]
[362334663,1748202036520,154.15,0.00013699,2]
[362334664,1748202036759,-154.15,0.00016712,2]
[362334665,1748202036857,154.15,0.00013699,2]
[362334666,1748202037234,154.15,0.00013699,2]
[362334667,1748202037584,154.15,0.00013699,2]
[362334668,1748202037887,154.15,0.00013699,2]
[362334669,1748202038237,154.15,0.00013699,2]
[362334670,1748202038522,154.15,0.00013699,2]
[362334671,1748202038868,154.15,0.00013699,2]
[362334672,1748202039787,154.15,0.00013699,2]
[362334673,1748202040128,154.15,0.00013699,2]
[362334674,1748202040440,154.15,0.00013699,2]
[362334675,1748202040787,154.18975789,0.00013699,2]
[362334676,1748202228019,250.0,0.00015,2]
[362334677,1748202229716,-32.44,0.00016712,2]
[362334678,1748202229744,-157.22348167,0.00017,2]
[362334679,1748202237615,-142.77651833,0.00017,2]
[362334686,1748202441116,-298.54991892,0.00016374,2]
[362334687,1748202445456,-245.14006397,0.00016374,2]
[362334688,1748202447011,-246.66993603,0.00016374,2]
[362334689,1748202449084,-192.65657287,0.00016374,2]
[362334690,1748202452971,-215.55986763,0.00016374,2]
[362334691,1748202455266,-61.56364058,0.00016374,2]
[362334693,1748202632265,-202.0,0.00017439,2]
[362334694,1748202632275,-180.77424267,0.00017938,2]
[362334695,1748202632284,-108.45959733,0.00018038,2]
[362334696,1748202632295,-856.03038983,0.00018038,2]
[362334697,1748202632304,-200.0,0.00018121,2]
[362334698,1748202632313,-168.88,0.00018263,2]
[362334699,1748202632323,-150.0,0.00018329,2]
[362334700,1748202632332,-250.0,0.00018341,2]
[362334701,1748202632341,-1000.0,0.0001835,2]
[362334702,1748202632350,-268.87,0.00018359,2]
[362334703,1748202632359,-150.0,0.0001855,2]
[362334704,1748202632368,-1260.14,0.00018638,2]
[362334705,1748202632377,-300.0,0.00018798,2]
[362334706,1748202632386,-1200.0,0.000188,2]
[362334707,1748202632395,-958.33499217,0.00018801,2]
[362334708,1748202632411,-557.08500783,0.00018801,2]
[362334709,1748202632421,-1515.42,0.00018806,2]
[362334710,1748202632437,-300.0,0.0001881,2]
[362334711,1748202632446,-1515.42,0.00018811,2]
[362334712,1748202632455,-889.66452773,0.00018816,2]
[362334713,1748202632466,-625.75547227,0.00018816,2]
[362334714,1748202632475,-1515.42,0.00018821,2]